Department Family,Entity,Date,Expense Type,Expense Area,Supplier,Transaction Number,AP Amount,VAT Registration Number,Purchase Invoice Number,
Department of Health,Bridgewater Community Healthcare NHS Foundation Trust,31-Jan-22,Mobile Phones,Computing,VODAFONE LTD,40760344,"85,262.36",GB 569 9532 77,98571532,
Department of Health,Bridgewater Community Healthcare NHS Foundation Trust,31-Jan-22,Mobile Phones,Computing,VODAFONE LTD,40760348,"89,977.68",GB 569 9532 77,98862506,
Department of Health,Bridgewater Community Healthcare NHS Foundation Trust,31-Jan-22,Continence Products,Continence Adult - Warrington,ESSITY UK LTD,40760350,"51,460.81",GB 600 4331 06,6401860041,
Department of Health,Bridgewater Community Healthcare NHS Foundation Trust,31-Jan-22,Continence Products,Continence Adult - Warrington,ESSITY UK LTD,40760351,"59,315.40",GB 600 4331 06,6401888361,
Department of Health,Bridgewater Community Healthcare NHS Foundation Trust,31-Jan-22,Contr Estate Management,General Management,KEY HEALTH SOLUTIONS LTD,40794240,"67,375.00",889508656,16005,
Department of Health,Bridgewater Community Healthcare NHS Foundation Trust,31-Jan-22,Continence Products,Continence Adult Halton,ESSITY UK LTD,40795063,"33,438.03",GB 600 4331 06,6401860045,
Department of Health,Bridgewater Community Healthcare NHS Foundation Trust,31-Jan-22,Continence Products,Continence Adult Halton,ESSITY UK LTD,40795093,"45,522.49",GB 600 4331 06,6401888365,
Department of Health,Bridgewater Community Healthcare NHS Foundation Trust,31-Jan-22,Mobile Phones,Computing,VODAFONE LTD,40795122,"53,806.87",GB 569 9532 77,99119952,
Department of Health,Bridgewater Community Healthcare NHS Foundation Trust,31-Jan-22,Mobile Phones,Computing,VODAFONE LTD,40795124,"77,527.61",GB 569 9532 77,99371730,
Department of Health,Bridgewater Community Healthcare NHS Foundation Trust,31-Jan-22,Legal / Prof Fees,General Management,HEMPSONS,40813540,"33,791.76",238507161,75008726,
Department of Health,Bridgewater Community Healthcare NHS Foundation Trust,31-Jan-22,Service Charge,Flu Campaign,SAVILLS (UK) LTD,40813575,"29,778.38",57765757 9,A005777,
Department of Health,Bridgewater Community Healthcare NHS Foundation Trust,31-Jan-22,Continence Products,Continence Adult Halton,ESSITY UK LTD,40864533,"33,162.30",GB 600 4331 06,6401900350,
Department of Health,Bridgewater Community Healthcare NHS Foundation Trust,31-Jan-22,Lease Rents,Penketh Health Centre,NHS PROPERTY SERVICES LTD,40864567,"26,328.27",156725100,H530798,
Department of Health,Bridgewater Community Healthcare NHS Foundation Trust,31-Jan-22,Lease Rents,89 Spencer House,SAVILLS (UK) LTD,40869715,"40,021.20",57765757 9,A061550,
Department of Health,Bridgewater Community Healthcare NHS Foundation Trust,31-Jan-22,Lease Rents,89 Spencer House,SAVILLS (UK) LTD,40869717,"36,969.02",57765757 9,A931606,
Department of Health,Bridgewater Community Healthcare NHS Foundation Trust,31-Jan-22,Continence Products,Continence Adult - Warrington,ESSITY UK LTD,40869725,"50,675.19",GB 600 4331 06,6401900346,
Department of Health,Bridgewater Community Healthcare NHS Foundation Trust,31-Jan-22,Lease Rents,Bath Street,COMMUNITY HEALTH PARTNERSHIPS LTD,40869727,"39,822.65",GB782562113,0060226884,
Department of Health,Bridgewater Community Healthcare NHS Foundation Trust,31-Jan-22,Lease Rents,Child Development Centre Orford,COMMUNITY HEALTH PARTNERSHIPS LTD,40903536,"42,449.21",GB782562113,0060226886,
Department of Health,Bridgewater Community Healthcare NHS Foundation Trust,31-Jan-22,Independent Sector,Flu Campaign,PIONEER HEALTHCARE LTD,40961601,"30,800.00",,3229,
Department of Health,Bridgewater Community Healthcare NHS Foundation Trust,31-Jan-22,CNST contributions,Finance,NHS RESOLUTION,40978645,"70,992.60",654967486,SICX407560,
Department of Health,Bridgewater Community Healthcare NHS Foundation Trust,31-Jan-22,Audit Fees: Statutory,Finance,KPMG LLP,40984678,"27,810.00",791788859,5502356534,
Department of Health,Bridgewater Community Healthcare NHS Foundation Trust,31-Jan-22,Computer Software/License,Organisational Costs,SEE DATA LTD,41008652,"27,216.00",GB993362877,105866,
Department of Health,Bridgewater Community Healthcare NHS Foundation Trust,31-Jan-22,CNST contributions,Finance,NHS RESOLUTION,41008677,"70,992.60",654967486,SICX407867,
Department of Health,Bridgewater Community Healthcare NHS Foundation Trust,31-Jan-22,Lease Rents,Pennine Dental,NHS PROPERTY SERVICES LTD,41027614,"48,103.51",156725100,H528585,
Department of Health,Bridgewater Community Healthcare NHS Foundation Trust,31-Jan-22,External Consultancy Fees,Computing,PHOENIX PARTNERSHIP (LEEDS) LTD,41047800,"55,735.00",721671841,13176,
Department of Health,Bridgewater Community Healthcare NHS Foundation Trust,31-Jan-22,SrvcsRecd-FoundationTrust,Procurement,WARRINGTON & HALTON HOSPITALS NHS FOUNDATION TRUST,41047838,"56,894.00",654404741,15382777,
Department of Health,Bridgewater Community Healthcare NHS Foundation Trust,31-Jan-22,Lease Rents,Dental - Estates,NHS PROPERTY SERVICES LTD,41056838,"27,719.00",156725100,H349540,
Department of Health,Bridgewater Community Healthcare NHS Foundation Trust,31-Jan-22,Lease Rents,Dental - Estates,NHS PROPERTY SERVICES LTD,41056844,"27,719.00",156725100,H398683,
Department of Health,Bridgewater Community Healthcare NHS Foundation Trust,31-Jan-22,Lease Rents,Lister Road,NHS PROPERTY SERVICES LTD,41056847,"26,211.17",156725100,H432619,
Department of Health,Bridgewater Community Healthcare NHS Foundation Trust,31-Jan-22,Lease Rents,Lister Road,NHS PROPERTY SERVICES LTD,41056864,"26,211.17",156725100,H463481,
Department of Health,Bridgewater Community Healthcare NHS Foundation Trust,31-Jan-22,Lease Rents,Dental - Estates,NHS PROPERTY SERVICES LTD,41056865,"31,424.01",156725100,H461373,
Department of Health,Bridgewater Community Healthcare NHS Foundation Trust,31-Jan-22,Lease Rents,Dental - Estates,NHS PROPERTY SERVICES LTD,41056869,"27,651.99",156725100,H463468,
Department of Health,Bridgewater Community Healthcare NHS Foundation Trust,31-Jan-22,Lease Rents,Lister Road,NHS PROPERTY SERVICES LTD,41056877,"26,211.17",156725100,H509585,
Department of Health,Bridgewater Community Healthcare NHS Foundation Trust,31-Jan-22,Lease Rents,Dental - Estates,NHS PROPERTY SERVICES LTD,41056880,"31,424.01",156725100,H507150,
Department of Health,Bridgewater Community Healthcare NHS Foundation Trust,31-Jan-22,Lease Rents,Dental - Estates,NHS PROPERTY SERVICES LTD,41056889,"31,051.62",156725100,H528584,
Department of Health,Bridgewater Community Healthcare NHS Foundation Trust,31-Jan-22,Lease Rents,Lister Road,NHS PROPERTY SERVICES LTD,41056893,"26,211.17",156725100,H530801,
Department of Health,Bridgewater Community Healthcare NHS Foundation Trust,31-Jan-22,Lease Rents,Dental - Estates,NHS PROPERTY SERVICES LTD,41056894,"27,651.99",156725100,H530793,
